[Event "Sardinia World Festival-A 2024"]
[Site "Orosei"]
[Date "2024.04.30"]
[Round "5.31"]
[White "Di Benedetto, Edoardo"]
[Black "Krivenko, Dion"]
[Result "1/2-1/2"]
[ECO "E69"]
[WhiteElo "2400"]
[BlackElo "2254"]
[Annotator "TA"]
[PlyCount "73"]
[EventDate "2024.04.26"]
[EventType "swiss"]
[EventCountry "ITA"]
[SourceTitle "playchess.com"]
[Source "ChessBase"]
[SourceQuality "1"]
[TimeControl "40/5400+30:1800+30"]

{[%evp 23,73,0,12,20,25,15,54,31,30,11,9,0,0,0,0,10,29,15,16,16,9,25,20,16,25,7,7,0,15,0,0,0,0,0,0,0,2,0,0,0,0,0,0,0,0,0,0,0,0,0,0,0]} 1. d4 {[%emt 0:00:07]} Nf6 {[%emt 0:03:08]} 2. c4 {[%emt 0:00:03]} g6 {[%emt 0:00:06]} 3. g3 {[%emt 0:00:11]} Bg7 {[%emt 0:00:07]} 4. Bg2 {[%emt 0:00:06]} O-O {[%emt 0:00:07]} 5. Nf3 {[%emt 0:00:08]} d6 {[%emt 0:00:05]} 6. Nc3 {[%emt 0:00:17]} Nbd7 {[%emt 0:00:09][%cal Bb8d7,Bd7c5,Bc5a4,Ba4c3][%mdl 32]} 7. O-O {[%emt 0:00:26]} e5 {[%emt 0:00:07]} 8. e4 {[%emt 0:00:33]} c6 {[%emt 0:00:05]} 9. h3 {[%emt 0:02:26]} Qb6 {[%emt 0:00:11]} 10. d5 {[%emt 0:12:16]} cxd5 {[%emt 0:00:58]} 11. cxd5 {[%emt 0:01:09]} Nc5 {[%emt 0:01:18]} 12. Qc2 {[%emt 0:02:23]} Bd7 {[%emt 0:02:43]} 13. Be3 {[%emt 0:02:16]} Rfc8 {[%emt 0:02:41]} 14. Nd2 {[%emt 0:01:24]} Qa6 {[%emt 0:03:00]} 15. Rfc1 {[%emt 0:04:09] White is slightly better.} b5 $1 {[%emt 0:02:28]} 16. b4 {[%emt 0:04:09]} Na4 {[%emt 0:02:14]} 17. Qb3 {[%emt 0:00:32]} Nxc3 {[%emt 0:02:05]} 18. Rxc3 {[%emt 0:00:06]} Rxc3 {[%emt 0:00:05]} 19. Qxc3 {[%emt 0:00:09]} Rc8 {[%emt 0:00:39]} 20. Qb2 {[%emt 0:01:08]} Qa4 {[%emt 0:09:03]} 21. Rc1 {[%emt 0:00:36] [#] Threatens to win with Rxc8+.} Rxc1+ {[%emt 0:01:10]} 22. Qxc1 {[%emt 0:00:01]} Ne8 {[%emt 0:01:05] Against Qc7} (22... Qxa2 $2 {is the wrong capture.} 23. Qc7 $18) 23. a3 {[%emt 0:00:37]} a5 {[%emt 0:02:52]} 24. bxa5 {[%emt 0:00:21]} Qxa5 {[%emt 0:00:13] The position is equal.} 25. Kh2 {[%emt 0:00:17]} Bf6 {[%emt 0:02:46][%cal Bg7f6,Bf6d8,Bd8a5,Ba5b6,Bb6d4][%mdl 32]} 26. Bf1 {[%emt 0:04:13]} Bd8 {[%emt 0:01:14]} 27. Qb2 {[%emt 0:01:56]} Qa6 {[%emt 0:13:48]} 28. Kg1 {[%emt 0:05:43]} Qa4 {[%emt 0:05:43]} 29. Qb4 {[%emt 0:07:01]} Qa6 {[%emt 0:01:36]} 30. Nb1 {[%emt 0:01:45]} Ba5 {[%emt 0:10:33]} 31. Qb2 {[%emt 0:05:11]} Qb7 {[%emt 0:03:10]} 32. Bd2 {[%emt 0:09:07]} Bb6 {[%emt 0:04:25]} 33. Bb4 {[%emt 0:01:32]} Bd4 {[%emt 0:01:32]} 34. Bc3 {[%emt 0:04:22]} Bc5 {[%emt 0:01:35]} 35. Bb4 {[%emt 0:03:01]} Bd4 {[%emt 0:00:30]} 36. Bc3 {[%emt 0:06:44]} Bc5 {[%emt 0:00:33]} 37. Bb4 {[%emt 0:01:03] Weighted Error Value: White=0.04 (flawless) /Black=0.03 (flawless) .  Inaccurate:     	---       	Black=1      OK:         	White=12    	Black=15     Strong:       	---       	Black=1} 1/2-1/2

[Event "Sardinia World Festival-A 2024"]
[Site "Orosei"]
[Date "2024.04.30"]
[Round "5.32"]
[White "Vantika Agrawal"]
[Black "Cina`, Vittorio"]
[Result "1-0"]
[ECO "D37"]
[WhiteElo "2398"]
[BlackElo "2165"]
[Annotator "TA"]
[PlyCount "79"]
[EventDate "2024.04.26"]
[EventType "swiss"]
[EventCountry "ITA"]
[SourceTitle "playchess.com"]
[Source "ChessBase"]
[SourceQuality "1"]
[TimeControl "40/5400+30:1800+30"]

{[%evp 9,79,20,26,29,31,29,34,24,22,27,21,29,31,32,38,29,32,14,31,32,26,31,24,24,34,25,33,18,28,17,35,27,46,36,93,64,104,88,117,122,126,112,196,168,205,145,146,144,206,206,165,137,129,146,124,93,232,246,397,404,378,336,386,405,708,727,726,708,728,728,702,674]} 1. d4 {[%emt 0:03:07]} Nf6 {[%emt 0:00:11]} 2. c4 {[%emt 0:00:23]} e6 {[%emt 0:00:09]} 3. Nf3 {[%emt 0:00:07]} a6 {[%emt 0:00:51]} 4. Nc3 {[%emt 0:02:36]} d5 {[%emt 0:00:12]} 5. cxd5 {[%emt 0:01:55]} exd5 {[%emt 0:00:06]} 6. Bg5 {[%emt 0:02:13]} Be6 {[%emt 0:01:59]} 7. e3 {[%emt 0:04:35]} Nbd7 {[%emt 0:01:22]} 8. h3 {[%emt 0:01:14] White is slightly better.} Bd6 {[%emt 0:04:05]} 9. Bd3 {[%emt 0:02:50]} c6 {[%emt 0:00:39]} 10. Bf4 {[%emt 0:03:54]} Qc7 {[%emt 0:00:58]} 11. Bxd6 {[%emt 0:05:10]} Qxd6 {[%emt 0:00:05]} 12. O-O {[%emt 0:04:42]} O-O {[%emt 0:08:04]} 13. a4 {[%emt 0:06:00]} b6 {[%emt 0:10:09]} 14. Qe2 {[%emt 0:07:52]} a5 {[%emt 0:02:35]} 15. Rac1 {[%emt 0:01:03]} Rac8 {[%emt 0:06:12]} 16. Rfd1 {[%emt 0:09:08]} Rfe8 {[%emt 0:05:52]} 17. Qc2 {[%emt 0:08:09]} h6 {[%emt 0:10:20]} 18. Nh4 {[%emt 0:05:25]} c5 {[%emt 0:06:48]} 19. Nf5 {[%emt 0:04:08]} Qf8 {[%emt 0:10:51]} 20. Ba6 {[%emt 0:06:29]} Rcd8 {[%emt 0:03:34][%cal Of6e4]} 21. Ng3 {[%emt 0:03:05]} h5 {[%emt 0:04:15]} (21... Ra8 $14 22. Bb5 Rec8) 22. Nge2 {[%emt 0:04:29] White is more active.} g6 {[%emt 0:03:48]} 23. Bb5 {[%emt 0:01:01]} Bf5 {[%emt 0:03:03]} 24. Qd2 {[%emt 0:00:43]} c4 {[%emt 0:00:25]} 25. Ng3 {[%emt 0:07:11] And now Nxf5 would win.} Be6 {[%emt 0:01:35]} (25... Bd3 $16 {was necessary.}) 26. e4 $18 {[%emt 0:02:19][%cal Be3e4,Be4e5][%mdl 32]} h4 {[%emt 0:08:26]} 27. e5 {[%emt 0:00:35]} hxg3 {[%emt 0:03:41]} 28. exf6 {[%emt 0:00:08]} gxf2+ {[%emt 0:01:03]} (28... Nxf6 $16 29. Bxe8 (29. fxg3 Bd7 $11) 29... Qxe8) 29. Qxf2 {[%emt 0:01:15]} Qh6 {[%emt 0:00:08] Prevents Qh4.} 30. Re1 {[%emt 0:02:16]} Qg5 {[%emt 0:01:02]} 31. Bxd7 {[%emt 0:00:45]} Bxd7 {[%emt 0:00:41]} 32. h4 {[%emt 0:00:22][%cal Bh3h4,Bh4h5][%mdl 32]} Qh5 {[%emt 0:01:22] Loses the game.} (32... Rxe1+ $16 33. Rxe1 Qg4) 33. Re7 {[%emt 0:00:56]} Rxe7 $2 {[%emt 0:00:47]} (33... Qf5 34. Rf1 Qxf2+ 35. Kxf2 (35. Rxf2 Be6 $16) 35... Bf5) 34. fxe7 {[%emt 0:00:04]} Re8 {[%emt 0:00:04] [#] Black is weak on the dark squares} 35. Re1 {[%emt 0:00:53]} Be6 {[%emt 0:00:38] [#]} 36. Re5 {[%emt 0:00:06] Inhibits Qf5.} Qh8 {[%emt 0:01:16]} (36... Qh6 $142 37. Qf6 (37. Nxd5 Bxd5 38. Rxd5 Rxe7 $14) 37... Rxe7 38. Qxe7 Qc1+ 39. Kf2 Qf4+ 40. Ke2 Qg4+ 41. Ke1 Qg3+ 42. Kd1 Qxg2 43. Rxe6 fxe6 44. Qxe6+ Kg7 45. Qe5+ (45. Qxb6 g5 $18) (45. Nxd5 Qf3+ 46. Ke1 Qg3+ 47. Ke2 Qd3+ 48. Kf2 Qxd4+ 49. Kf3 Qxh4 $18) 45... Kh7 46. Qxd5 (46. Nxd5 Qh1+ 47. Kd2 Qg2+ 48. Kc3 Qf3+ 49. Ne3 Qh1 $18) 46... Qf1+ 47. Kc2 Qd3+ 48. Kc1 Qf1+ 49. Nd1 Qf4+ 50. Kb1 Qxh4 51. Qxc4 Kg7 52. Qc7+ Kf8 53. Qxb6 Qe1 54. Qf6+ Kg8 55. Qxg6+ Kf8 56. Qd6+ Kg8 57. Qg6+ Kf8 58. Qf6+ Kg8 59. Qg6+) 37. h5 {[%emt 0:00:32] White is clearly winning.} Rxe7 {[%emt 0:01:05]} 38. Nxd5 {[%emt 0:00:56]} Bxd5 {[%emt 0:00:35]} 39. Rxe7 {[%emt 0:00:35] Re8+ would now be deadly.} Qxh5 {[%emt 0:00:29]} 40. Qf6 {[%emt 0:00:32] Weighted Error Value: White=0.07 (flawless) /Black=0.33.  Mistake:       	---       	Black=6      Inaccurate:     	White=1     	Black=2      OK:         	White=13    	Black=8      Best:        	White=2     	Black=2} 1-0

[Event "Sardinia World Festival-A 2024"]
[Site "Orosei"]
[Date "2024.04.30"]
[Round "5.33"]
[White "Loftgaard, Mikkel Vinh"]
[Black "Zemach, Nadav"]
[Result "1/2-1/2"]
[ECO "C54"]
[WhiteElo "2227"]
[BlackElo "2396"]
[Annotator "RC"]
[PlyCount "67"]
[EventDate "2024.04.26"]
[EventType "swiss"]
[EventCountry "ITA"]
[SourceTitle "playchess.com"]
[Source "ChessBase"]
[SourceQuality "1"]
[TimeControl "40/5400+30:1800+30"]

1. e4 {[%emt 0:00:05]} e5 {[%emt 0:00:33]} 2. Nf3 {[%emt 0:00:03]} Nc6 {[%emt 0:00:37]} 3. Bc4 {[%emt 0:00:09]} Bc5 {[%emt 0:00:16]} 4. c3 {[%emt 0:00:02]} Nf6 {[%emt 0:00:06]} 5. d3 {[%emt 0:00:14]} a6 {[%emt 0:00:31]} 6. a4 {[%emt 0:00:20]} d6 {[%emt 0:00:07]} 7. O-O {[%emt 0:00:08]} Ba7 {[%emt 0:00:05]} 8. Re1 {[%emt 0:01:09]} O-O {[%emt 0:00:59]} 9. h3 {[%emt 0:00:22]} h6 {[%emt 0:00:05]} 10. Nbd2 {[%emt 0:00:44]} Re8 {[%emt 0:00:05]} 11. Nf1 {[%emt 0:00:46]} Be6 {[%emt 0:00:08]} 12. Bxe6 {[%emt 0:00:53]} Rxe6 {[%emt 0:00:02]} 13. Be3 {[%emt 0:00:33]} Bxe3 {[%emt 0:00:23]} 14. Nxe3 {[%emt 0:00:23]} d5 {[%emt 0:00:07]} 15. exd5 {[%emt 0:02:33]} Nxd5 {[%emt 0:00:12]} 16. Nxd5 {[%emt 0:00:11]} Qxd5 {[%emt 0:00:06]} 17. Qc2 {[%emt 0:00:31]} Rd8 {[%emt 0:15:59]} 18. Re3 {[%emt 0:02:13]} a5 {[%emt 0:04:43]} 19. Rae1 {[%emt 0:02:25]} Rde8 {[%emt 0:01:19]} 20. Rd1 {[%emt 0:08:56]} g6 {[%emt 0:02:01]} 21. Qc1 {[%emt 0:09:17]} Kg7 {[%emt 0:00:58]} 22. d4 {[%emt 0:03:18]} exd4 {[%emt 0:02:25]} 23. Rxe6 {[%emt 0:01:59]} Rxe6 {[%emt 0:04:48]} 24. Nxd4 {[%emt 0:01:57]} Rd6 {[%emt 0:11:35]} 25. Rd2 {[%emt 0:04:42]} Qg5 {[%emt 0:02:43]} 26. Nf3 {[%emt 0:03:28]} Qf4 {[%emt 0:00:13]} 27. Qc2 {[%emt 0:00:14]} Ne5 {[%emt 0:02:49]} 28. Nd4 {[%emt 0:05:38]} Nc6 {[%emt 0:11:29]} 29. Nf3 {[%emt 0:00:24]} Re6 {[%emt 0:02:04]} 30. Rd7 {[%emt 0:05:50]} Ne5 {[%emt 0:04:06]} 31. Nxe5 {[%emt 0:02:17]} Rxe5 {[%emt 0:00:30]} 32. Qd1 {[%emt 0:00:23]} Re6 {[%emt 0:02:19]} 33. g3 {[%emt 0:01:32]} Qe5 {[%emt 0:02:18]} 34. Rd5 {[%emt 0:03:06]} 1/2-1/2

[Event "Sardinia World Festival-A 2024"]
[Site "Orosei"]
[Date "2024.04.30"]
[Round "5.34"]
[White "Samunenkov, Ihor"]
[Black "Grot, Blazej"]
[Result "1-0"]
[ECO "E05"]
[WhiteElo "2548"]
[BlackElo "2046"]
[Annotator "TA"]
[PlyCount "73"]
[EventDate "2024.04.26"]
[EventType "swiss"]
[EventCountry "ITA"]
[SourceTitle "playchess.com"]
[Source "ChessBase"]
[SourceQuality "1"]
[TimeControl "40/5400+30:1800+30"]

{[%evp 12,73,34,15,27,21,20,0,9,19,12,-3,0,-18,0,0,-19,-6,0,-30,0,0,8,10,38,43,43,3,0,-24,-16,-8,-14,-39,72,79,143,147,180,197,202,194,196,188,196,192,214,180,220,238,275,195,402,399,745,456,961,884,877,877,29978,29979,29972,29973]} 1. d4 {[%emt 0:00:07]} Nf6 {[%emt 0:00:24]} 2. Nf3 {[%emt 0:00:13]} e6 {[%emt 0:00:49]} 3. c4 {[%emt 0:00:19]} d5 {[%emt 0:00:26]} 4. g3 {[%emt 0:00:12]} Be7 {[%emt 0:01:02]} 5. Bg2 {[%emt 0:00:11]} O-O {[%emt 0:00:21]} 6. O-O {[%emt 0:00:17]} dxc4 {[%emt 0:00:42]} 7. Qc2 {[%emt 0:00:17]} b6 {[%emt 0:00:59]} 8. Ne5 {[%emt 0:00:43]} Qxd4 {[%emt 0:01:26]} 9. Bxa8 {[%emt 0:00:26]} Qxe5 {[%emt 0:00:27] The position is equal.} 10. Bf3 {[%emt 0:00:08]} Nd5 {[%emt 0:00:25] Prevents Bf4.} 11. Nc3 {[%emt 0:20:26]} Nc6 {[%emt 0:28:18][%cal Bb8c6,Bc6b4,Bb4a6,Ba6c5,Bc5e6][%mdl 32] next ...Nd4 is good for Black.} (11... Nxc3 {simplifies} 12. Qxc3 Qxc3 13. bxc3 Nd7) 12. Nxd5 {[%emt 0:32:31]} exd5 {[%emt 0:01:54]} 13. Bf4 {[%emt 0:00:14]} Qe6 {[%emt 0:02:46]} 14. Rad1 $132 {[%emt 0:04:42][%mdl 2048] Against Nd4. White has counterplay} Nb4 {[%emt 0:09:11][%csl LRa2,LRc2]} 15. Qb1 {[%emt 0:05:38][%cal Oa2a3] [#] a3! is the strong threat.} c6 {[%emt 0:10:18]} (15... g5 $5 16. Bd2 (16. Bxc7 Na6 $17) 16... Nc6 $15) 16. a3 {[%emt 0:01:43]} Na6 {[%emt 0:01:08]} 17. e4 {[%emt 0:00:11]} Bb7 {[%emt 0:04:04]} 18. exd5 {[%emt 0:04:17]} cxd5 {[%emt 0:00:07]} 19. Rfe1 {[%emt 0:00:09]} (19. b3 $5 c3 20. Rfe1 $14) 19... Qd7 {[%emt 0:00:41]} 20. b3 {[%emt 0:00:35]} cxb3 {[%emt 0:05:27]} 21. Qxb3 {[%emt 0:00:24][%cal Rf3d5]} Nc5 {[%emt 0:02:37]} 22. Qe3 {[%emt 0:10:34]} Bf6 {[%emt 0:12:40]} (22... Ne6 $1 $15 {stays ahead.}) 23. Be5 $16 {[%emt 0:02:17] Threatens to win with Bxf6.} Bxe5 {[%emt 0:06:43]} (23... Re8 $142 24. Qc3 Bg5) 24. Qxe5 {[%emt 0:00:09]} Ne6 {[%emt 0:00:16]} 25. Bxd5 {[%emt 0:06:16]} Bxd5 {[%emt 0:00:23]} 26. Rxd5 {[%emt 0:00:14]} Qa4 {[%emt 0:00:44]} 27. Qc3 {[%emt 0:01:01]} Qg4 {[%emt 0:01:23]} 28. Qe3 {[%emt 0:03:05]} Qa4 {[%emt 0:02:03]} 29. Red1 {[%emt 0:01:06]} h6 {[%emt 0:00:47]} 30. Rd7 {[%emt 0:01:40]} Rc8 {[%emt 0:00:46]} 31. h4 {[%emt 0:01:15] Black must now prevent Qf3.} Qc2 $2 {[%emt 0:01:48]} (31... Rc7 32. R7d3 Qc4) 32. Qf3 $18 {[%emt 0:00:50]} f5 {[%emt 0:01:17]} (32... Qg6 33. h5 (33. Rxa7 b5 $18) 33... Qf6 34. Qxf6 gxf6 35. Rxa7 Ng5) 33. Qd5 {[%emt 0:01:46]} Qc6 {[%emt 0:00:46]} (33... Qe4 $142 34. Rxg7+ (34. Rxa7 Rc6 $18) 34... Kxg7) 34. Qxf5 {[%emt 0:00:56][%cal Od1d6] Intending R1d6! and mate.} Rf8 {[%emt 0:00:26]} 35. Qg6 {[%emt 0:00:50][%cal Od7g7] White threatens Rxg7+! and mate.} Rf6 {[%emt 0:00:53] [#]} 36. Rxg7+ $3 {[%emt 0:00:38][%mdl 512]} Nxg7 {[%emt 0:00:05]} 37. Rd8+ {[%emt 0:00:08] Weighted Error Value: White=0.24 (precise) /Black=0.55.  Mistake:       	---       	Black=5      Inaccurate:     	White=3     	Black=2      OK:         	White=11    	Black=5      Best:        	White=4     	Black=2} 1-0

[Event "Sardinia World Festival-A 2024"]
[Site "Orosei"]
[Date "2024.04.30"]
[Round "5.35"]
[White "Van Zyl-Rudd, Jack"]
[Black "Girel, Joseph"]
[Result "0-1"]
[ECO "D35"]
[WhiteElo "2261"]
[BlackElo "2479"]
[Annotator "TA"]
[PlyCount "127"]
[EventDate "2024.04.26"]
[EventType "swiss"]
[EventCountry "ITA"]
[SourceTitle "playchess.com"]
[Source "ChessBase"]
[SourceQuality "1"]
[TimeControl "40/5400+30:1800+30"]

{[%evp 26,127,15,16,14,18,28,24,38,26,60,0,22,0,0,4,1,0,0,0,0,0,0,0,0,-39,-7,-37,-37,-37,-37,-37,-37,-37,-23,-30,-36,-36,-23,-23,-30,-31,-30,-45,-38,-60,-45,-45,-47,-61,-47,-48,-48,-47,-47,-52,-57,-50,-50,-54,-50,-46,-15,-22,-19,-22,-12,-13,0,-59,-14,-10,0,-33,-36,-25,-17,-2,-20,-23,-31,-25,-28,-78,-70,-199,-217,-206,-239,-222,-220,-439,-398,-460,-433,-516,-518,-441,-476,-447,-440,-410,-372,-325]} 1. d4 {[%emt 0:08:17]} Nf6 {[%emt 0:00:39]} 2. c4 {[%emt 0:00:10]} e6 {[%emt 0:00:12]} 3. Nc3 {[%emt 0:00:05]} d5 {[%emt 0:01:03]} 4. cxd5 {[%emt 0:00:06]} exd5 {[%emt 0:00:11]} 5. Bg5 {[%emt 0:00:07]} c6 {[%emt 0:00:48]} 6. e3 {[%emt 0:00:06]} Bd6 {[%emt 0:00:19]} 7. Bd3 {[%emt 0:00:11]} O-O {[%emt 0:00:24]} 8. Nge2 {[%emt 0:00:55] 8.Nf3 is setting a new trend. D35: Queen's Gambit Declined: Exchange Variation.} Re8 {[%emt 0:01:31]} 9. Qc2 {[%emt 0:02:42]} h6 {[%emt 0:00:08]} 10. Bh4 {[%emt 0:00:04]} a5 {[%emt 0:01:11]} 11. Bg3 {[%emt 0:01:05]} Bxg3 {[%emt 0:02:21]} 12. Nxg3 {[%emt 0:02:51]} Na6 {[%emt 0:01:29]} 13. a3 {[%emt 0:00:28]} Nc7 {[%emt 0:00:16]} 14. O-O {[%emt 0:00:21]} h5 {[%emt 0:00:10]} 15. h3 {[%emt 0:04:32]} h4 {[%emt 0:03:32]} 16. Nge2 {[%emt 0:02:02]} Qd6 {[%emt 0:03:45]} 17. Rae1 $146 {[%emt 0:13:22]} ({Predecessor:} 17. Na4 Ne6 18. Nb6 Rb8 19. Nxc8 Rbxc8 20. Bf5 Rc7 21. Bxe6 Qxe6 22. Nf4 Qd7 23. Rfc1 {1-0 Tan,J (2307)-Dardha,D (2612) Titled Tuesday intern op 28th Feb Early blitz 2023 (2)}) 17... Bd7 {[%emt 0:03:05]} 18. Nc1 {[%emt 0:02:17]} (18. Na4 $14) 18... Ne6 {[%emt 0:03:58]} 19. Bf5 {[%emt 0:15:35]} Re7 {[%emt 0:14:03]} 20. Qd1 {[%emt 0:06:14]} Ng5 {[%emt 0:05:18]} 21. Bxd7 {[%emt 0:00:16]} Qxd7 {[%emt 0:00:16]} 22. Nd3 {[%emt 0:00:35]} Nfe4 {[%emt 0:03:25]} 23. Nxe4 {[%emt 0:13:54]} Nxe4 {[%emt 0:01:16]} 24. Qc2 {[%emt 0:04:09]} Qf5 {[%emt 0:05:14]} 25. Nc5 {[%emt 0:03:12]} Nd6 {[%emt 0:01:48]} (25... Ng3 $5 26. Qxf5 Nxf5 $16) 26. Qxf5 {[%emt 0:00:26]} Nxf5 {[%emt 0:00:03]} 27. b3 {[%emt 0:01:00]} f6 {[%emt 0:01:19]} 28. Rc1 {[%emt 0:03:07]} Kf7 {[%emt 0:01:21]} 29. a4 {[%emt 0:01:44]} g5 {[%emt 0:03:20]} 30. Kh2 {[%emt 0:00:36]} Nd6 {[%emt 0:01:53]} 31. Rc2 {[%emt 0:03:51]} Ke8 {[%emt 0:04:41]} 32. Rb1 {[%emt 0:08:25]} Kd8 {[%emt 0:01:22]} 33. Kh1 {[%emt 0:02:49]} Kc7 {[%emt 0:00:11]} 34. Kh2 {[%emt 0:00:04]} f5 {[%emt 0:02:40]} 35. Rd1 {[%emt 0:01:22]} Rf8 {[%emt 0:03:04]} 36. Nd3 {[%emt 0:00:48]} f4 {[%emt 0:03:56]} 37. exf4 {[%emt 0:00:05]} gxf4 {[%emt 0:00:03]} 38. Ne5 {[%emt 0:00:18]} Rg8 {[%emt 0:00:43]} 39. Nf3 {[%emt 0:00:50]} Nf5 {[%emt 0:00:09]} 40. Rcd2 {[%emt 0:00:46]} Kd6 {[%emt 0:00:46]} 41. Ne5 {[%emt 0:07:32]} Reg7 {[%emt 0:05:25]} (41... Nxd4 42. Nc4+ Kc7 43. Rxd4 $11) 42. Ng4 {[%emt 0:00:06]} b6 {[%emt 0:03:30]} 43. Rd3 {[%emt 0:06:18]} Rf8 {[%emt 0:03:14]} 44. Rf3 {[%emt 0:10:56]} Ne7 {[%emt 0:00:31]} 45. Ne5 {[%emt 0:04:39]} Ng6 {[%emt 0:01:25]} 46. Nd3 $1 {[%emt 0:01:39]} c5 {[%emt 0:03:52]} 47. Nb2 {[%emt 0:01:15]} (47. Ne1 $11) 47... Rc7 {[%emt 0:03:35]} 48. dxc5+ {[%emt 0:01:13]} Rxc5 {[%emt 0:00:02]} 49. b4 {[%emt 0:00:28]} Rc2 {[%emt 0:02:00]} 50. Rb3 {[%emt 0:00:19]} Ne7 {[%emt 0:01:43]} 51. bxa5 {[%emt 0:00:09]} bxa5 {[%emt 0:00:03]} 52. Nd3 {[%emt 0:00:27]} Rc4 {[%emt 0:03:35]} 53. Rb6+ {[%emt 0:00:55]} Nc6 {[%emt 0:01:38]} 54. Nb2 {[%emt 0:00:39] [#]} (54. Rb7 $11 {remains equal.}) 54... Rb4 $1 $17 {[%emt 0:00:43]} 55. Rxb4 {[%emt 0:00:02]} (55. Rb5 $15 d4 56. f3) 55... axb4 $19 {[%emt 0:00:14]} (55... Nxb4 56. Nc4+ Kc5 57. Nxa5 $11) 56. Nd3 {[%emt 0:00:06]} b3 {[%emt 0:01:51]} 57. Rb1 {[%emt 0:00:11]} Na5 {[%emt 0:00:26]} 58. Rc1 $2 {[%emt 0:01:53]} (58. Kg1) 58... Nc4 $19 {[%emt 0:01:10]} 59. Rb1 {[%emt 0:00:44]} Rb8 {[%emt 0:00:01]} 60. g3 {[%emt 0:00:29]} fxg3+ {[%emt 0:05:45]} 61. fxg3 {[%emt 0:00:02]} b2 {[%emt 0:00:16]} (61... Nd2 62. Rb2 Nc4 63. Rb1 $19) 62. gxh4 {[%emt 0:00:36]} Rb3 {[%emt 0:00:06]} 63. Nxb2 {[%emt 0:00:19]} Nd2 {[%emt 0:00:14]} ({Stronger than} 63... Nxb2 64. a5 $11) ({Not} 63... Rxb2+ 64. Rxb2 Nxb2 65. h5 $11) 64. Rd1 {[%emt 0:01:46]} 0-1

[Event "Sardinia World Festival-A 2024"]
[Site "Orosei"]
[Date "2024.04.30"]
[Round "5.36"]
[White "Fromm, Marius"]
[Black "Deveci, Huseyin Said"]
[Result "1-0"]
[ECO "C77"]
[WhiteElo "2454"]
[BlackElo "2255"]
[Annotator "TA"]
[PlyCount "81"]
[EventDate "2024.04.26"]
[EventType "swiss"]
[EventCountry "ITA"]
[SourceTitle "playchess.com"]
[Source "ChessBase"]
[SourceQuality "1"]
[TimeControl "40/5400+30:1800+30"]

{[%evp 9,81,7,12,2,0,0,0,0,0,5,6,0,3,-2,-6,-19,-21,-23,-14,-37,-32,-38,-34,-45,-36,-35,-10,-11,0,-20,0,-4,30,5,13,0,13,6,99,20,24,20,26,0,-10,-7,0,0,0,9,103,103,404,368,406,411,431,424,393,273,292,280,455,408,439,410,1443,1374,29945,5781,29981,29982,29988,29989]} 1. e4 {[%emt 0:00:09]} e5 {[%emt 0:00:10]} 2. Nf3 {[%emt 0:00:05]} Nc6 {[%emt 0:00:04]} 3. Bb5 {[%emt 0:01:06]} a6 {[%emt 0:00:07]} 4. Ba4 {[%emt 0:00:04]} Nf6 {[%emt 0:00:08]} 5. Nc3 {[%emt 0:01:00]} Bc5 {[%emt 0:01:55]} 6. d3 {[%emt 0:01:13]} O-O {[%emt 0:01:40]} 7. Bxc6 {[%emt 0:00:05]} dxc6 {[%emt 0:00:10]} 8. O-O {[%emt 0:00:45] The position is equal.} Re8 {[%emt 0:00:41]} 9. Be3 {[%emt 0:00:29]} Bd6 {[%emt 0:00:24]} 10. h3 {[%emt 0:00:06]} Nh5 {[%emt 0:12:50]} 11. a4 {[%emt 0:17:56]} Qf6 {[%emt 0:05:48]} 12. Nd2 {[%emt 0:03:08]} Nf4 {[%emt 0:07:32]} 13. Qf3 {[%emt 0:00:37]} Be6 {[%emt 0:05:30]} 14. Kh2 {[%emt 0:03:35]} g5 {[%emt 0:10:15]} 15. Rh1 {[%emt 0:09:49]} h5 {[%emt 0:09:28]} 16. Kg1 {[%emt 0:02:43]} Kg7 {[%emt 0:26:42]} 17. Qd1 {[%emt 0:05:06]} g4 {[%emt 0:01:11]} 18. h4 {[%emt 0:00:25]} Kh7 {[%emt 0:00:24]} 19. Nf1 {[%emt 0:03:22]} b5 {[%emt 0:04:41]} 20. Ng3 {[%emt 0:00:19]} ({Reject} 20. g3 b4 21. Na2 c5 $15) 20... b4 {[%emt 0:02:03]} 21. Nce2 {[%emt 0:00:26]} b3 {[%emt 0:02:01]} 22. c3 {[%emt 0:00:14]} Rad8 {[%emt 0:01:00]} 23. Qd2 {[%emt 0:01:54]} Kg6 {[%emt 0:01:38]} (23... Nxe2+ $11 24. Nxe2 (24. Qxe2 Qg6 $11) 24... Qg6) 24. Nxf4+ {[%emt 0:06:13]} (24. Rf1 $16) 24... exf4 $11 {[%emt 0:00:04]} 25. Bd4 {[%emt 0:00:02]} Qe7 {[%emt 0:00:39]} ({But not} 25... Be5 $6 26. Ne2 $16) 26. e5 {[%emt 0:00:24] Some like it hot} fxg3 {[%emt 0:01:25]} 27. exd6 {[%emt 0:00:10]} cxd6 {[%emt 0:00:08]} 28. fxg3 {[%emt 0:04:15]} c5 {[%emt 0:01:32]} 29. Be3 {[%emt 0:00:05]} Bd5 {[%emt 0:04:50] [#]} (29... d5 $11) 30. Re1 $1 $16 {[%emt 0:00:08] Black must now prevent Kh2.} Qb7 $2 {[%emt 0:00:00][%mdl 8192] Black cannot hold the game after this.} (30... f6 $16) 31. Kh2 $18 {[%emt 0:00:33]} Re6 {[%emt 0:00:00] [#]} 32. Bxc5 $1 {[%emt 0:03:15][%cal Be3c5,Bc5d4,Bd4c3][%mdl 544]} Qe7 {[%emt 0:00:00] Repels Qg5+} (32... f6 33. Bd4) 33. Bd4 {[%emt 0:00:41]} Re8 {[%emt 0:00:14]} 34. Rxe6+ {[%emt 0:00:06]} fxe6 {[%emt 0:00:07][%cal Bf7e6,Be6e5][%mdl 32]} 35. c4 {[%emt 0:01:31]} Ba8 {[%emt 0:00:35]} (35... Bc6 36. Rf1 e5) 36. Rf1 {[%emt 0:00:32][%cal Bh1f1,Bf1f5,Bf5h5][%mdl 32]} e5 {[%emt 0:00:04]} 37. Bc3 {[%emt 0:00:16] Threatens to win with d4.} Kh7 {[%emt 0:02:19]} (37... Rf8 $142) 38. Rf5 {[%emt 0:00:14]} Rg8 {[%emt 0:00:38]} 39. Rxh5+ {[%emt 0:03:05]} Kg7 {[%emt 0:00:03]} 40. d4 {[%emt 0:00:50][%cal Bd3d4,Bd4e5][%mdl 32]} Rh8 {[%emt 0:00:30] [#]} 41. dxe5 $1 {[%emt 0:30:27] Weighted Error Value: White=0.13 (very precise) /Black=0.69.  Loses game:     	---       	Black=1      Mistake:       	White=1     	Black=4      Inaccurate:     	White=2     	Black=2      OK:         	White=15    	Black=9      Best:        	White=3     	Black=1      Strong:       	White=1     	---} 1-0